[Event "Championnat d'Europe Rapide"]
[Date "2024.12.08"]
[White "Veljanoski, Andrej"]
[Black "Fressinet, Laurent"]
[WhiteElo "2304"]
[BlackElo "2588"]
[Round "9.35"]
[Result "0-1"]
[TimeControl "900+10"]

1. e4 {[%emt 00:00:02] [%clk 00:15:17]} e5 {[%emt 00:00:03] [%clk 00:15:18]} 2.
Nf3 {[%emt 00:00:02] [%clk 00:15:25]} Nc6 {[%emt 00:00:02] [%clk 00:15:26]} 3.
Bc4 {[%emt 00:00:02] [%clk 00:15:33]} Nf6 {[%emt 00:00:02] [%clk 00:15:34]} 4.
d3 {[%emt 00:00:10] [%clk 00:15:34]} Bc5 {[%emt 00:00:02] [%clk 00:15:42]} 5.
O-O {[%emt 00:00:10] [%clk 00:15:33]} d6 {[%emt 00:00:04] [%clk 00:15:48]} 6. c3
{[%emt 00:00:19] [%clk 00:15:24]} a6 {[%emt 00:00:02] [%clk 00:15:55]} 7. Bb3
{[%emt 00:00:13] [%clk 00:15:21]} O-O {[%emt 00:00:19] [%clk 00:15:46]} 8. h3
{[%emt 00:00:09] [%clk 00:15:22]} h6 {[%emt 00:01:20] [%clk 00:14:36]} 9. Nbd2
{[%emt 00:00:10] [%clk 00:15:21]} Re8 {[%emt 00:00:22] [%clk 00:14:24]} 10. Re1
{[%emt 00:00:02] [%clk 00:15:29]} Be6 {[%emt 00:00:05] [%clk 00:14:29]} 11. Bc2
{[%emt 00:00:24] [%clk 00:15:15]} d5 {[%emt 00:00:11] [%clk 00:14:28]} 12. Nxe5
{[%emt 00:00:45] [%clk 00:14:39]} Nxe5 {[%emt 00:01:22] [%clk 00:13:16]} 13. d4
{[%emt 00:00:02] [%clk 00:14:48]} dxe4 {[%emt 00:00:25] [%clk 00:13:01]} 14.
dxe5 {[%emt 00:02:08] [%clk 00:12:50]} e3 {[%emt 00:00:19] [%clk 00:12:52]} 15.
fxe3 {[%emt 00:00:04] [%clk 00:12:56]} Nd7 {[%emt 00:00:26] [%clk 00:12:35]} 16.
Nf3 {[%emt 00:00:32] [%clk 00:12:34]} Qe7 {[%emt 00:02:37] [%clk 00:10:08]} 17.
Qd3 {[%emt 00:00:50] [%clk 00:11:54]} Nf8 {[%emt 00:00:13] [%clk 00:10:06]} 18.
c4 {[%emt 00:00:53] [%clk 00:11:11]} Rad8 {[%emt 00:00:11] [%clk 00:10:05]} 19.
Qe2 {[%emt 00:00:02] [%clk 00:11:18]} Bd7 {[%emt 00:01:29] [%clk 00:08:46]} 20.
Bd2 {[%emt 00:00:30] [%clk 00:10:58]} Bc6 {[%emt 00:00:48] [%clk 00:08:07]} 21.
Rad1 {[%emt 00:01:26] [%clk 00:09:42]} Bxf3 {[%emt 00:01:25] [%clk 00:06:52]}
22. Qxf3 {[%emt 00:00:04] [%clk 00:09:49]} Rxd2 {[%emt 00:00:18] [%clk
00:06:44]} 23. Rxd2 {[%emt 00:00:15] [%clk 00:09:43]} Bb4 {[%emt 00:00:04] [%clk
00:06:51]} 24. Rdd1 {[%emt 00:00:36] [%clk 00:09:16]} Bxe1 {[%emt 00:00:13]
[%clk 00:06:48]} 25. Rxe1 {[%clk 00:09:25]} c6 {[%emt 00:00:15] [%clk 00:06:44]}
26. Rf1 {[%emt 00:00:11] [%clk 00:09:24]} Qc7 {[%emt 00:00:49] [%clk 00:06:05]}
27. c5 {[%emt 00:01:31] [%clk 00:08:03]} Rxe5 {[%emt 00:00:05] [%clk 00:06:10]}
28. Qg3 {[%emt 00:00:32] [%clk 00:07:41]} Re7 {[%emt 00:00:16] [%clk 00:06:04]}
29. Qxc7 {[%emt 00:00:06] [%clk 00:07:45]} Rxc7 {[%emt 00:00:02] [%clk
00:06:12]} 30. Rd1 {[%emt 00:00:19] [%clk 00:07:36]} g6 {[%emt 00:01:24] [%clk
00:04:58]} 31. Kf2 {[%emt 00:00:15] [%clk 00:07:31]} Kg7 {[%emt 00:00:07] [%clk
00:05:01]} 32. Kf3 {[%emt 00:00:33] [%clk 00:07:07]} Kf6 {[%emt 00:00:13] [%clk
00:04:58]} 33. b4 {[%emt 00:00:39] [%clk 00:06:39]} Ke7 {[%emt 00:00:37] [%clk
00:04:30]} 34. Bb3 {[%emt 00:00:24] [%clk 00:06:26]} Rc8 {[%emt 00:00:27]} 35.
Rd4 {[%clk 00:06:25]} Nd7 {[%emt 00:01:19] [%clk 00:03:15]} 36. Kf4 {[%emt
00:00:42] [%clk 00:05:53]} a5 {[%emt 00:01:59] [%clk 00:01:26]} 37. a3 {[%emt
00:00:02] [%clk 00:06:00]} axb4 {[%emt 00:00:03] [%clk 00:01:34]} 38. axb4
{[%emt 00:00:05] [%clk 00:06:04]} Ra8 {[%emt 00:00:09] [%clk 00:01:34]} 39. Re4+
{[%emt 00:01:52] [%clk 00:04:23]} Kf6 {[%emt 00:00:02] [%clk 00:01:42]} 40. Rd4
{[%emt 00:00:02] [%clk 00:04:31]} Nf8 {[%emt 00:00:02] [%clk 00:01:49]} 41. b5
{[%emt 00:01:18] [%clk 00:03:24]} Ra3 {[%emt 00:01:00] [%clk 00:01:00]} 42. Rb4
{[%emt 00:00:52] [%clk 00:02:43]} g5+ {[%emt 00:00:23] [%clk 00:00:46]} 43. Kf3
{[%emt 00:00:28] [%clk 00:02:25]} Nd7 {[%emt 00:00:07] [%clk 00:00:49]} 44. bxc6
{[%emt 00:01:47] [%clk 00:00:48]} bxc6 {[%emt 00:00:01] [%clk 00:00:58]} 45. Ba4
{[%emt 00:00:39] [%clk 00:00:20]} Rc3 {[%emt 00:00:25] [%clk 00:00:43]} 46. h4
{[%emt 00:00:11] [%clk 00:00:19]} Rxc5 {[%emt 00:00:25] [%clk 00:00:28]} 47.
hxg5+ {[%clk 00:00:28]} hxg5 {[%emt 00:00:01] [%clk 00:00:37]} 48. Rd4 {[%emt
00:00:08] [%clk 00:00:30]} Ke7 {[%emt 00:00:22] [%clk 00:00:25]} 49. Rb4 {[%emt
00:00:24] [%clk 00:00:16]} f5 {[%emt 00:00:21] [%clk 00:00:14]} 50. Rb7 {[%emt
00:00:09] [%clk 00:00:17]} Kd6 {[%emt 00:00:01] [%clk 00:00:23]} 51. Bd1 {[%emt
00:00:09] [%clk 00:00:18]} Ne5+ {[%emt 00:00:02] [%clk 00:00:31]} 52. Kf2 {[%clk
00:00:27]} Rc1 {[%emt 00:00:13] [%clk 00:00:27]} 53. Be2 {[%emt 00:00:02] [%clk
00:00:36]} Rc2 {[%emt 00:00:09] [%clk 00:00:28]} 54. Rg7 {[%emt 00:00:12] [%clk
00:00:34]} Nd3+ {[%emt 00:00:10] [%clk 00:00:28]} 55. Kf1 {[%emt 00:00:06] [%clk
00:00:38]} Rc1+ {[%emt 00:00:01] [%clk 00:00:36]} 56. Bd1 {[%emt 00:00:01] [%clk
00:00:47]} Nb2 {[%emt 00:00:18] [%clk 00:00:28]} 57. Rxg5 {[%emt 00:00:02] [%clk
00:00:55]} Nxd1 {[%emt 00:00:02] [%clk 00:00:36]} 58. Ke2 {[%clk 00:01:04]} Nc3+
{[%emt 00:00:16] [%clk 00:00:30]} 59. Kd3 {[%emt 00:00:02] [%clk 00:01:13]} Nd5
{[%emt 00:00:22] [%clk 00:00:18]} 60. Rxf5 {[%emt 00:00:06] [%clk 00:01:17]} c5
{[%emt 00:00:06] [%clk 00:00:22]} 61. Rf8 {[%emt 00:00:25] [%clk 00:01:02]} Rc3+
{[%emt 00:00:12] [%clk 00:00:20]} 62. Kd2 {[%clk 00:01:11]} Ra3 {[%clk
00:00:29]} 63. Rd8+ {[%emt 00:00:09] [%clk 00:01:13]} Kc6 {[%emt 00:00:11] [%clk
00:00:28]} 64. e4 {[%emt 00:00:12] [%clk 00:01:11]} Ra2+ {[%emt 00:00:10] [%clk
00:00:27]} 65. Kd3 {[%emt 00:00:37] [%clk 00:00:45]} Nf4+ {[%emt 00:00:05] [%clk
00:00:32]} 66. Kc3 {[%emt 00:00:05] [%clk 00:00:50]} Ra3+ {[%emt 00:00:09] [%clk
00:00:34]} 67. Kc4 {[%emt 00:00:17] [%clk 00:00:43]} Ra4+ {[%emt 00:00:02] [%clk
00:00:42]} 0-1

[Site "Europe Echecs"]

[Event "Championnat d'Europe Rapide"]
[Date "2024.12.08"]
[White "Mastrovasilis, Dimitrios"]
[Black "Trushko, Andrii"]
[WhiteElo "2537"]
[BlackElo "2143"]
[Round "9.36"]
[Result "1/2-1/2"]
[TimeControl "900+10"]

1. e4 {[%emt 00:00:06] [%clk 00:15:13]} c6 {[%emt 00:00:04] [%clk 00:15:17]} 2.
d4 {[%emt 00:00:08] [%clk 00:15:15]} d5 {[%emt 00:00:02] [%clk 00:15:25]} 3. Nd2
{[%emt 00:00:06] [%clk 00:15:19]} h6 {[%emt 00:00:05] [%clk 00:15:30]} 4. c3
{[%emt 00:00:20] [%clk 00:15:09]} dxe4 {[%emt 00:00:07] [%clk 00:15:34]} 5. Nxe4
{[%emt 00:00:02] [%clk 00:15:16]} Bf5 {[%emt 00:00:02] [%clk 00:15:43]} 6. Bd3
{[%emt 00:00:51] [%clk 00:14:34]} e6 {[%emt 00:00:06] [%clk 00:15:47]} 7. Qf3
{[%emt 00:00:56] [%clk 00:13:48]} Bxe4 {[%emt 00:00:18] [%clk 00:15:40]} 8. Qxe4
{[%emt 00:00:18] [%clk 00:13:39]} Qd5 {[%emt 00:00:09] [%clk 00:15:41]} 9. Nf3
{[%emt 00:00:14] [%clk 00:13:35]} Qxe4+ {[%emt 00:00:05] [%clk 00:15:47]} 10.
Bxe4 {[%emt 00:00:02] [%clk 00:13:43]} Nf6 {[%emt 00:00:02] [%clk 00:15:56]} 11.
Bc2 {[%emt 00:00:02] [%clk 00:13:50]} Bd6 {[%emt 00:00:05] [%clk 00:16:01]} 12.
O-O {[%emt 00:00:19] [%clk 00:13:40]} Nbd7 {[%emt 00:00:04] [%clk 00:16:08]} 13.
Re1 {[%emt 00:00:06] [%clk 00:13:44]} Bc7 {[%emt 00:01:21] [%clk 00:14:58]} 14.
g3 {[%emt 00:00:12] [%clk 00:13:41]} O-O {[%emt 00:00:13] [%clk 00:14:55]} 15.
Kg2 {[%emt 00:00:33] [%clk 00:13:17]} Rad8 {[%emt 00:00:35] [%clk 00:14:31]} 16.
Bd2 {[%emt 00:00:17] [%clk 00:13:09]} Rfe8 {[%emt 00:00:26] [%clk 00:14:15]} 17.
Rad1 {[%emt 00:00:08] [%clk 00:13:11]} e5 {[%emt 00:02:16] [%clk 00:12:09]} 18.
Bc1 {[%emt 00:01:42] [%clk 00:11:39]} exd4 {[%emt 00:00:14] [%clk 00:12:05]} 19.
Nxd4 {[%emt 00:00:10] [%clk 00:11:39]} Rxe1 {[%emt 00:01:51] [%clk 00:10:25]}
20. Rxe1 {[%emt 00:00:02] [%clk 00:11:47]} Re8 {[%emt 00:00:02] [%clk 00:10:33]}
21. Rxe8+ {[%emt 00:03:33] [%clk 00:08:23]} Nxe8 {[%emt 00:00:01] [%clk
00:10:42]} 22. g4 {[%emt 00:01:13] [%clk 00:07:20]} Ne5 {[%emt 00:02:10] [%clk
00:08:42]} 23. h3 {[%emt 00:00:41] [%clk 00:06:48]} Ng6 {[%emt 00:00:54] [%clk
00:07:58]} 24. Bxg6 {[%emt 00:02:07] [%clk 00:04:52]} fxg6 {[%emt 00:00:02]
[%clk 00:08:07]} 25. Ne6 {[%emt 00:00:03] [%clk 00:04:59]} Kf7 {[%emt 00:01:27]
[%clk 00:06:50]} 26. Nxc7 {[%emt 00:00:10] [%clk 00:04:58]} Nxc7 {[%emt
00:00:01] [%clk 00:06:59]} 27. Be3 {[%emt 00:00:06] [%clk 00:05:02]} b6 {[%emt
00:01:19] [%clk 00:05:50]} 28. Kf3 {[%emt 00:00:40] [%clk 00:04:31]} Ke6 {[%emt
00:00:13] [%clk 00:05:48]} 29. Bd4 {[%emt 00:00:47] [%clk 00:03:54]} Ne8 {[%emt
00:00:03] [%clk 00:05:56]} 30. c4 {[%emt 00:00:24] [%clk 00:03:40]} c5 {[%emt
00:01:44] [%clk 00:04:21]} 31. Bc3 {[%emt 00:00:01] [%clk 00:03:48]} g5 {[%emt
00:00:23] [%clk 00:04:09]} 32. Ke3 {[%emt 00:00:55] [%clk 00:03:03]} g6 {[%emt
00:00:34] [%clk 00:03:45]} 33. b3 {[%emt 00:00:48] [%clk 00:02:25]} Nd6 {[%emt
00:01:18] [%clk 00:02:37]} 34. Bg7 {[%emt 00:00:26] [%clk 00:02:08]} Nf7 {[%emt
00:00:02] [%clk 00:02:46]} 35. Ke4 {[%emt 00:00:10] [%clk 00:02:09]} Nd6+ {[%emt
00:00:09] [%clk 00:02:48]} 36. Kd3 {[%clk 00:02:17]} Nf7 {[%emt 00:00:01] [%clk
00:02:57]} 37. Ke3 {[%emt 00:00:01] [%clk 00:02:26]} Kd6 {[%emt 00:00:17] [%clk
00:02:49]} 38. f3 {[%emt 00:01:34] [%clk 00:01:03]} Ke6 {[%emt 00:00:03] [%clk
00:02:56]} 39. Bc3 {[%emt 00:00:04] [%clk 00:01:09]} Nd8 {[%emt 00:00:27] [%clk
00:02:40]} 40. Ke4 {[%emt 00:00:19] [%clk 00:00:59]} Nf7 {[%emt 00:00:41] [%clk
00:02:09]} 41. Be1 {[%emt 00:00:20] [%clk 00:00:49]} Nd6+ {[%emt 00:00:02] [%clk
00:02:18]} 42. Ke3 {[%emt 00:00:01] [%clk 00:00:58]} Nf7 {[%emt 00:00:26] [%clk
00:02:01]} 43. Bg3 {[%emt 00:00:03] [%clk 00:01:05]} Nd6 {[%emt 00:01:00] [%clk
00:01:12]} 44. Kd3 {[%emt 00:00:08] [%clk 00:01:07]} Ke7 {[%emt 00:00:16] [%clk
00:01:06]} 45. Bh2 {[%emt 00:00:32] [%clk 00:00:44]} Ke6 {[%emt 00:00:02] [%clk
00:01:15]} 46. Bg3 {[%emt 00:00:01] [%clk 00:00:53]} Ke7 {[%clk 00:01:24]} 47.
f4 {[%emt 00:00:12] [%clk 00:00:52]} Ke6 {[%emt 00:00:46] [%clk 00:00:48]} 48.
Ke3 {[%emt 00:00:17] [%clk 00:00:45]} Ke7 {[%emt 00:00:17] [%clk 00:00:41]} 49.
Be1 {[%emt 00:00:16] [%clk 00:00:39]} Ke6 {[%emt 00:00:07] [%clk 00:00:45]} 50.
Bc3 {[%emt 00:00:19] [%clk 00:00:29]} Nf7 {[%emt 00:00:01] [%clk 00:00:54]} 51.
Kf3 {[%emt 00:00:12] [%clk 00:00:27]} h5 {[%emt 00:00:30] [%clk 00:00:34]} 52.
Bd2 {[%emt 00:00:19] [%clk 00:00:19]} gxf4 {[%emt 00:00:11] [%clk 00:00:32]} 53.
Bxf4 {[%emt 00:00:02] [%clk 00:00:27]} hxg4+ {[%emt 00:00:03] [%clk 00:00:40]}
54. Kxg4 {[%emt 00:00:03] [%clk 00:00:34]} Nd8 {[%emt 00:00:01] [%clk 00:00:48]}
55. Kg5 {[%emt 00:00:20] [%clk 00:00:24]} Kf7 {[%emt 00:00:01] [%clk 00:00:57]}
56. Be5 {[%emt 00:00:04] [%clk 00:00:30]} Nc6 {[%emt 00:00:09] [%clk 00:00:58]}
57. Bc3 {[%clk 00:00:38]} Nd8 {[%emt 00:00:02] [%clk 00:01:06]} 58. Kf4 {[%emt
00:00:08] [%clk 00:00:40]} Ke6 {[%emt 00:00:02] [%clk 00:01:14]} 59. Kg5 {[%emt
00:00:17] [%clk 00:00:33]} Kf7 {[%clk 00:01:23]} 60. Kf4 {[%emt 00:00:09] [%clk
00:00:34]} Ke6 {[%clk 00:01:33]} 61. Ke4 {[%emt 00:00:03] [%clk 00:00:42]} Nf7
{[%emt 00:00:06] [%clk 00:01:37]} 62. Bd2 {[%emt 00:00:07] [%clk 00:00:45]} Nd6+
{[%emt 00:00:08] [%clk 00:01:38]} 63. Kf4 {[%emt 00:00:04] [%clk 00:00:51]} Nf7
{[%emt 00:00:01] [%clk 00:01:47]} 64. Bc3 {[%emt 00:00:21] [%clk 00:00:39]} Kd6
{[%emt 00:00:06] [%clk 00:01:52]} 65. Bb2 {[%emt 00:00:29] [%clk 00:00:21]} Ke6
{[%emt 00:00:01] [%clk 00:02:01]} 66. Bc3 {[%emt 00:00:01] [%clk 00:00:30]} Kd6
{[%clk 00:02:10]} 67. Bb2 {[%emt 00:00:16] [%clk 00:00:24]} Ke6 {[%emt 00:00:01]
[%clk 00:02:20]} 1/2-1/2

[Site "Europe Echecs"]

[Event "Championnat d'Europe Rapide"]
[Date "2024.12.08"]
[White "Domalchuk-Jonasson, Aleksandr"]
[Black "Pantsulaia, Levan"]
[WhiteElo "2377"]
[BlackElo "2522"]
[Round "9.37"]
[Result "0-1"]
[TimeControl "900+10"]

1. c4 {[%emt 00:00:03] [%clk 00:15:16]} g6 {[%emt 00:00:11] [%clk 00:15:10]} 2.
d4 {[%emt 00:00:11] [%clk 00:15:15]} c5 {[%emt 00:00:09] [%clk 00:15:11]} 3. d5
{[%emt 00:00:07] [%clk 00:15:19]} Bg7 {[%emt 00:00:02] [%clk 00:15:19]} 4. e4
{[%emt 00:00:07] [%clk 00:15:22]} d6 {[%emt 00:00:02] [%clk 00:15:27]} 5. Nc3
{[%emt 00:00:26] [%clk 00:15:06]} Bxc3+ {[%emt 00:00:04] [%clk 00:15:33]} 6.
bxc3 {[%emt 00:00:01] [%clk 00:15:15]} e5 {[%emt 00:00:02] [%clk 00:15:41]} 7.
f4 {[%emt 00:00:27] [%clk 00:14:58]} Qf6 {[%emt 00:00:02] [%clk 00:15:49]} 8.
fxe5 {[%emt 00:00:14] [%clk 00:14:55]} Qh4+ {[%emt 00:00:01] [%clk 00:15:57]} 9.
Kd2 {[%emt 00:03:16] [%clk 00:11:49]} Qxe4 {[%emt 00:00:02] [%clk 00:16:05]} 10.
exd6 {[%emt 00:02:19] [%clk 00:09:41]} Bf5 {[%emt 00:00:02] [%clk 00:16:12]} 11.
Qe2 {[%emt 00:02:05] [%clk 00:07:45]} Nf6 {[%emt 00:00:03] [%clk 00:16:20]} 12.
Qxe4+ {[%emt 00:01:22] [%clk 00:06:33]} Nxe4+ {[%emt 00:00:02] [%clk 00:16:28]}
13. Ke3 {[%emt 00:00:02] [%clk 00:06:42]} Nxd6 {[%emt 00:00:10] [%clk 00:16:27]}
14. Bd3 {[%emt 00:00:31] [%clk 00:06:21]} Nd7 {[%emt 00:00:11] [%clk 00:16:27]}
15. Nf3 {[%emt 00:00:12] [%clk 00:06:19]} Nb6 {[%emt 00:01:36] [%clk 00:15:01]}
16. Bxf5 {[%emt 00:02:04] [%clk 00:04:55]} Nbxc4+ {[%emt 00:00:13] [%clk
00:14:37]} 17. Kd3 {[%emt 00:00:03] [%clk 00:05:02]} gxf5 {[%emt 00:00:02] [%clk
00:14:44]} 18. Bf4 {[%emt 00:02:26] [%clk 00:02:46]} Kd7 {[%emt 00:00:06] [%clk
00:14:47]} 19. Rhe1 {[%emt 00:01:55] [%clk 00:01:01]} Rhe8 {[%emt 00:00:34]
[%clk 00:14:24]} 20. g3 {[%emt 00:00:22] [%clk 00:00:50]} f6 {[%emt 00:01:04]
[%clk 00:13:29]} 21. Rxe8 {[%emt 00:00:46] [%clk 00:00:14]} Rxe8 {[%emt
00:00:03] [%clk 00:13:36]} 22. Bxd6 {[%emt 00:00:13] [%clk 00:00:11]} Nxd6
{[%emt 00:00:02] [%clk 00:13:43]} 23. Nd2 {[%emt 00:00:04] [%clk 00:00:18]} b5
{[%emt 00:00:44] [%clk 00:13:11]} 24. c4 {[%emt 00:00:13] [%clk 00:00:14]} bxc4+
{[%emt 00:01:00] [%clk 00:12:20]} 25. Nxc4 {[%emt 00:00:01] [%clk 00:00:22]}
Nxc4 {[%emt 00:00:21] [%clk 00:12:08]} 26. Kxc4 {[%emt 00:00:02] [%clk
00:00:31]} Kd6 {[%emt 00:00:01] [%clk 00:12:17]} 27. Rf1 {[%emt 00:00:03] [%clk
00:00:38]} Re4+ {[%emt 00:00:02] [%clk 00:12:25]} 28. Kc3 {[%emt 00:00:34] [%clk
00:00:15]} f4 {[%emt 00:00:16] [%clk 00:12:19]} 29. gxf4 {[%emt 00:00:05] [%clk
00:00:20]} Kxd5 {[%emt 00:00:05] [%clk 00:12:24]} 30. Rd1+ {[%emt 00:00:06]
[%clk 00:00:23]} Rd4 {[%emt 00:00:04] [%clk 00:12:30]} 31. Rf1 {[%emt 00:00:19]
[%clk 00:00:14]} f5 {[%emt 00:00:04] [%clk 00:12:36]} 32. Rf3 {[%emt 00:00:04]
[%clk 00:00:21]} Ra4 {[%emt 00:02:45] [%clk 00:10:01]} 33. Kb3 {[%emt 00:00:03]
[%clk 00:00:28]} Ra6 {[%emt 00:00:15] [%clk 00:09:56]} 34. Rd3+ {[%emt 00:00:24]
[%clk 00:00:14]} Ke4 {[%emt 00:00:09]} 35. Rd7 {[%clk 00:00:23]} h6 {[%emt
00:00:25] [%clk 00:09:43]} 36. Rc7 {[%emt 00:00:08] [%clk 00:00:26]} Kxf4 {[%emt
00:00:05] [%clk 00:09:48]} 37. Rxc5 {[%emt 00:00:02] [%clk 00:00:34]} Ke4 {[%emt
00:00:36] [%clk 00:09:21]} 38. Rc4+ {[%emt 00:00:12] [%clk 00:00:32]} Kd5 {[%emt
00:00:02] [%clk 00:09:30]} 39. Rh4 {[%emt 00:00:29] [%clk 00:00:13]} Ke5 {[%emt
00:00:04] [%clk 00:09:36]} 40. Kc3 {[%emt 00:00:11] [%clk 00:00:12]} Rd6 {[%emt
00:00:37] [%clk 00:09:08]} 41. Ra4 {[%emt 00:00:10] [%clk 00:00:13]} a6 {[%emt
00:00:02] [%clk 00:09:16]} 42. Ra5+ {[%emt 00:00:03] [%clk 00:00:21]} Ke4 {[%emt
00:00:01] [%clk 00:09:24]} 43. Ra4+ {[%emt 00:00:10] [%clk 00:00:22]} Ke3 {[%emt
00:00:02] [%clk 00:09:32]} 44. Ra5 {[%emt 00:00:14] [%clk 00:00:18]} Rc6+ {[%emt
00:00:04] [%clk 00:09:38]} 45. Kb4 {[%emt 00:00:03] [%clk 00:00:26]} Rf6 {[%emt
00:00:20] [%clk 00:09:28]} 46. Re5+ {[%emt 00:00:07] [%clk 00:00:29]} Kd4 {[%emt
00:00:06] [%clk 00:09:31]} 47. Re1 {[%emt 00:00:02] [%clk 00:00:37]} f4 {[%emt
00:00:02] [%clk 00:09:39]} 0-1

[Site "Europe Echecs"]

[Event "Championnat d'Europe Rapide"]
[Date "2024.12.08"]
[White "Kozul, Zdenko"]
[Black "Zawadzka, Jolanta"]
[WhiteElo "2519"]
[BlackElo "2331"]
[Round "9.38"]
[Result "1-0"]
[TimeControl "900+10"]

1. d4 {[%clk 00:15:18]} d5 {[%emt 00:00:02] [%clk 00:15:18]} 2. c4 {[%emt
00:00:02] [%clk 00:15:26]} e6 {[%emt 00:00:02] [%clk 00:15:27]} 3. Nf3 {[%emt
00:00:01] [%clk 00:15:35]} Nf6 {[%emt 00:00:02] [%clk 00:15:35]} 4. g3 {[%emt
00:00:04] [%clk 00:15:40]} Bb4+ {[%emt 00:00:15] [%clk 00:15:31]} 5. Bd2 {[%emt
00:00:01] [%clk 00:15:48]} Be7 {[%emt 00:00:03] [%clk 00:15:39]} 6. Bg2 {[%emt
00:00:01] [%clk 00:15:57]} O-O {[%emt 00:00:03] [%clk 00:15:46]} 7. O-O {[%emt
00:00:04]} c6 {[%clk 00:15:54]} 8. Qc2 {[%emt 00:00:10] [%clk 00:16:04]} b6
{[%emt 00:00:11] [%clk 00:15:53]} 9. Bf4 {[%emt 00:00:18] [%clk 00:15:56]} Nbd7
{[%emt 00:00:29] [%clk 00:15:34]} 10. h4 {[%emt 00:00:21] [%clk 00:15:44]} Bb7
{[%emt 00:00:18] [%clk 00:15:26]} 11. cxd5 {[%emt 00:02:43] [%clk 00:13:12]}
cxd5 {[%emt 00:00:11] [%clk 00:15:25]} 12. Nc3 {[%emt 00:00:03] [%clk 00:13:19]}
Rc8 {[%emt 00:00:24] [%clk 00:15:11]} 13. Qb3 {[%emt 00:00:03] [%clk 00:13:26]}
Nb8 {[%emt 00:01:28] [%clk 00:13:52]} 14. Rfc1 {[%emt 00:00:25] [%clk 00:13:11]}
Nc6 {[%emt 00:00:14] [%clk 00:13:48]} 15. Qd1 {[%emt 00:00:09] [%clk 00:13:12]}
Ne4 {[%emt 00:01:23] [%clk 00:12:35]} 16. a3 {[%emt 00:00:15] [%clk 00:13:07]}
Bd6 {[%emt 00:00:48] [%clk 00:11:57]} 17. e3 {[%emt 00:00:59] [%clk 00:12:18]}
Bxf4 {[%emt 00:00:34] [%clk 00:11:33]} 18. exf4 {[%emt 00:00:02] [%clk
00:12:26]} Nd6 {[%emt 00:00:40] [%clk 00:11:02]} 19. Bf1 {[%emt 00:00:53] [%clk
00:11:42]} Rc7 {[%emt 00:00:29] [%clk 00:10:44]} 20. Bd3 {[%emt 00:00:11] [%clk
00:11:42]} g6 {[%emt 00:02:02] [%clk 00:08:52]} 21. Qe2 {[%emt 00:00:56] [%clk
00:10:56]} Na5 {[%emt 00:00:16] [%clk 00:08:46]} 22. Re1 {[%emt 00:00:05] [%clk
00:11:00]} Qf6 {[%emt 00:00:34] [%clk 00:08:23]} 23. h5 {[%emt 00:00:43] [%clk
00:10:26]} Nb3 {[%emt 00:00:37] [%clk 00:07:56]} 24. Rad1 {[%emt 00:00:02] [%clk
00:10:33]} Nf5 {[%emt 00:01:54] [%clk 00:06:12]} 25. Nb5 {[%emt 00:01:47] [%clk
00:08:57]} Nbxd4 {[%emt 00:02:27] [%clk 00:03:55]} 26. Nfxd4 {[%emt 00:00:06]
[%clk 00:09:01]} Nxd4 {[%emt 00:00:03] [%clk 00:04:03]} 27. Nxd4 {[%emt
00:00:02] [%clk 00:09:09]} Qxd4 {[%emt 00:00:02] [%clk 00:04:11]} 28. hxg6
{[%emt 00:00:33] [%clk 00:08:45]} hxg6 {[%emt 00:00:03] [%clk 00:04:18]} 29.
Bxg6 {[%emt 00:00:02] [%clk 00:08:53]} Qg7 {[%emt 00:00:21] [%clk 00:04:07]} 30.
Bb1 {[%emt 00:01:30] [%clk 00:07:33]} Rc4 {[%emt 00:01:39] [%clk 00:02:38]} 31.
Qh5 {[%emt 00:01:03] [%clk 00:06:40]} Rxf4 {[%emt 00:00:52] [%clk 00:01:57]} 32.
Re5 {[%emt 00:00:02] [%clk 00:06:48]} f5 {[%emt 00:00:27] [%clk 00:01:40]} 33.
Rxe6 {[%emt 00:01:30] [%clk 00:05:27]} Rg4 {[%emt 00:00:01] [%clk 00:01:49]} 34.
Ba2 {[%emt 00:00:01] [%clk 00:05:36]} Rg5 {[%emt 00:00:28] [%clk 00:01:30]} 35.
Qe2 {[%emt 00:01:49] [%clk 00:03:57]} Kh7 {[%emt 00:00:31] [%clk 00:01:10]} 36.
Bxd5 {[%emt 00:00:24] [%clk 00:03:43]} Bxd5 {[%emt 00:00:15] [%clk 00:01:05]}
37. Rxd5 {[%emt 00:00:01] [%clk 00:03:51]} Rf7 {[%emt 00:00:02] [%clk 00:01:13]}
38. Kg2 {[%emt 00:01:06] [%clk 00:02:55]} Rg4 {[%emt 00:00:42] [%clk 00:00:41]}
39. Qd3 {[%emt 00:00:24] [%clk 00:02:40]} Rg5 {[%emt 00:00:07] [%clk 00:00:44]}
40. Qb1 {[%emt 00:00:46] [%clk 00:02:04]} Rh5 {[%emt 00:00:05] [%clk 00:00:50]}
41. Qd1 {[%emt 00:00:19] [%clk 00:01:54]} Rg5 {[%emt 00:00:19] [%clk 00:00:42]}
42. Qh1+ {[%emt 00:00:25] [%clk 00:01:39]} Kg8 {[%emt 00:00:02] [%clk 00:00:51]}
43. Qh4 {[%emt 00:00:01] [%clk 00:01:47]} Rf8 {[%emt 00:00:12] [%clk 00:00:48]}
44. Rd7 {[%emt 00:00:11] [%clk 00:01:46]} 1-0

[Site "Europe Echecs"]